Workbook

Sheet Info & Summary
A1: Instrument Information
B2: Instrument Type | D2: Serial Number | F2: Instrument Name
B3: SBP | D3: enter S/N | F3: enter name
A5: Current Calibration Summary
A6: Pressure Cells
C7: TPC | E7: PPC A | G7: PPC B
A8: Zero | C8: ='Current Calibrations'!$B$24 -> -1398.391694 | D8: ='Current Calibrations'!$C$24 -> mV | E8: ='Current Calibrations'!$E$24 -> -30.25215947 | F8: ='Current Calibrations'!$F$24 -> mV | G8: ='Current Calibrations'!$H$24 -> -1878.918937 | H8: ='Current Calibrations'!$I$24 -> mV
A9: Slope | C9: ='Current Calibrations'!$B$25 -> 2.776664452 | D9: ='Current Calibrations'!$C$25 -> mV/psi | E9: ='Current Calibrations'!$E$25 -> 1.617827243 | F9: ='Current Calibrations'!$F$25 -> mV/psi | G9: ='Current Calibrations'!$H$25 -> 1.68548505 | H9: ='Current Calibrations'!$I$25 -> mV/psi
A10: Sensitivity | C10: ='Current Calibrations'!$B$26 -> 402.7209724 | D10: ='Current Calibrations'!$C$26 -> mV/MPa | E10: ='Current Calibrations'!$E$26 -> 234.6459112 | F10: ='Current Calibrations'!$F$26 -> mV/MPa | G10: ='Current Calibrations'!$H$26 -> 244.4588426 | H10: ='Current Calibrations'!$I$26 -> mV/MPa
A11: Arm Springs
C12: Arm 1 | E12: Arm 2 | G12: Arm 3 | I12: Arm 4 | K12: Arm 5 | M12: Arm 6
A13: Zero | C13: ='Current Calibrations'!$B$45 -> -280.6561462 | D13: ='Current Calibrations'!$C$45 -> mV | E13: ='Current Calibrations'!$E$45 -> 246.7727575 | F13: ='Current Calibrations'!$F$45 -> mV | G13: ='Current Calibrations'!$H$45 -> -266.8697674 | H13: ='Current Calibrations'!$I$45 -> mV | I13: ='Current Calibrations'!$K$45 -> -280.6561462 | J13: ='Current Calibrations'!$C$45 -> mV | K13: ='Current Calibrations'!$N$45 -> 246.7727575 | L13: ='Current Calibrations'!$F$45 -> mV | M13: ='Current Calibrations'!$Q$45 -> -266.8697674 | N13: ='Current Calibrations'!$I$45 -> mV
A14: Slope | C14: ='Current Calibrations'!$B$46 -> 302.6508306 | D14: ='Current Calibrations'!$C$46 -> mV/mm | E14: ='Current Calibrations'!$E$46 -> 288.7820598 | F14: ='Current Calibrations'!$F$46 -> mV/mm | G14: ='Current Calibrations'!$H$46 -> 291.2418605 | H14: ='Current Calibrations'!$I$46 -> mV/mm | I14: ='Current Calibrations'!$K$46 -> 302.6508306 | J14: ='Current Calibrations'!$C$46 -> mV/mm | K14: ='Current Calibrations'!$N$46 -> 288.7820598 | L14: ='Current Calibrations'!$F$46 -> mV/mm | M14: ='Current Calibrations'!$Q$46 -> 291.2418605 | N14: ='Current Calibrations'!$I$46 -> mV/mm
A15: Straightness Data Summary
A16: See the straightness calibration sheet for the locations of points A to F
A17: Date | B17: A | C17: B | D17: C | E17: D | F17: E | G17: F | H17: Operator

Sheet Current Calibrations
A1: Calibration Date | C1: Operator | E1: Instrument Type | G1: Serial Number | I1: Instrument Name
E2: ='Info & Summary'!B3 -> SBP | G2: ='Info & Summary'!D3 -> enter S/N | I2: ='Info & Summary'!F3 -> enter name
A3: Notes:
E7: Pressure cells | G7: Test Gauge: | I7: 10759918 (0-600psi)
A9: psi | B9: TPC | C9: Linearity | D9: Hysteresis | E9: PPC A | F9: Linearity | G9: Hysteresis | H9: PPC B | I9: Linearity | J9: Hysteresis
B10: (mV) | C10: (%) | D10: (%) | E10: (mV) | F10: (%) | G10: (%) | H10: (mV) | I10: (%) | J10: (%)
A11: 0 | B11: -1400 | C11: =(B12-B11)/B$25 -> 98.39143503 | D11: =(B11-B23)*100/(B$17-B$11) -> -0.3422395677 | E11: -30.1 | F11: =(E12-E11)/E$25 -> 98.89807502 | G11: =(E11-E23)*100/(E$17-E$11) -> -0.09290802106 | H11: -1883.1 | I11: =(H12-H11)/H$25 -> 102.1071056 | J11: =(H11-H23)*100/(H$17-H$11) -> -0.5038032204
A12: 100 | B12: -1126.8 | C12: 99.86802684 | D12: =(B12-B22)*100/(B$17-B$11) -> -0.5523866707 | E12: 129.9 | F12: 100.0106784 | G12: =(E12-E22)*100/(E$17-E$11) -> -0.1445235883 | H12: -1711 | I12: 100.1492122 | J12: =(H12-H22)*100/(H$17-H$11) -> -0.1778129013
A13: 200 | B13: -849.5 | C13: 100.8044021 | D13: =(B13-B21)*100/(B$17-B$11) -> -0.6364455119 | E13: 291.7 | F13: 100.9996591 | G13: =(E13-E21)*100/(E$17-E$11) -> -0.1858160421 | H13: -1542.2 | I13: 100.8018434 | J13: =(H13-H21)*100/(H$17-H$11) -> -0.1778129013
A14: 300 | B14: -569.6 | C14: 100.3722289 | D14: =(B14-B20)*100/(B$17-B$11) -> -0.5583908736 | E14: 455.1 | F14: 100.3815461 | G14: =(E14-E20)*100/(E$17-E$11) -> -0.09290802106 | H14: -1372.3 | I14: 99.85256174 | J14: =(H14-H20)*100/(H$17-H$11) -> -0.07902795614
A15: 400 | B15: -290.9 | C15: 100.3002001 | D15: =(B15-B19)*100/(B$17-B$11) -> -0.522365656 | E15: 617.5 | F15: 99.57799929 | G15: =(E15-E19)*100/(E$17-E$11) -> -0.08258490761 | H15: -1204 | I15: 99.19993062 | J15: =(H15-H19)*100/(H$17-H$11) -> -0.08890645066
A16: 500 | B16: -12.4 | C16: 100.0841134 | D16: =(B16-B18)*100/(B$17-B$11) -> -0.3782647853 | E16: 778.6 | F16: 98.89807502 | G16: =(E16-E18)*100/(E$17-E$11) -> -0.113554248 | H16: -1036.8 | I16: 98.48796939 | J16: =(H16-H18)*100/(H$17-H$11) -> -0.09878494517
A17: 600 | B17: 265.5 | C17: -97.81520407 | E17: 938.6 | F17: -98.21815075 | H17: -870.8 | I17: -97.89466837
A18: 500 | B18: -6.1 | C18: -99.43585363 | E18: 779.7 | F18: -99.76343318 | H18: -1035.8 | I18: -99.25926072
A19: 400 | B19: -282.2 | C19: -100.1561423 | E19: 618.3 | F19: -100.3197348 | H19: -1203.1 | I19: -99.91189184
A20: 300 | B20: -560.3 | C20: -100.3362145 | E20: 456 | F20: -100.4433574 | H20: -1371.5 | I20: -100.2085424
A21: 200 | B21: -838.9 | C21: -100.3722289 | E21: 293.5 | F21: -100.2579236 | H21: -1540.4 | I21: -100.1492122
A22: 100 | B22: -1117.6 | C22: -99.65194023 | E22: 131.3 | F22: -99.2071315 | H22: -1709.2 | I22: -100.1492122
A23: 0 | B23: -1394.3 | E23: -29.2 | H23: -1878
A24: Zero | B24: =INTERCEPT(B11:B23,$A11:$A23) -> -1398.391694 | C24: mV | E24: =INTERCEPT(E11:E23,$A11:$A23) -> -30.25215947 | F24: mV | H24: =INTERCEPT(H11:H23,$A11:$A23) -> -1878.918937 | I24: mV
A25: Slope | B25: =SLOPE(B11:B23,$A11:$A23) -> 2.776664452 | C25: mV/psi | E25: =SLOPE(E11:E23,$A11:$A23) -> 1.617827243 | F25: mV/psi | H25: =SLOPE(H11:H23,$A11:$A23) -> 1.68548505 | I25: mV/psi
A26: Sensitivity | B26: =B25*1000/6.89476 -> 402.7209724 | C26: mV/MPa | E26: =E25*1000/6.89476 -> 234.6459112 | F26: mV/MPa | H26: =H25*1000/6.89476 -> 244.4588426 | I26: mV/MPa
A28: Arm Springs
A30: mm | B30: Arm 1 | C30: Linearity | D30: Hysteresis | E30: Arm 2 | F30: Linearity | G30: Hysteresis | H30: Arm 3 | I30: Linearity | J30: Hysteresis | K30: Arm 4 | L30: Linearity | M30: Hysteresis | N30: Arm 5 | O30: Linearity | P30: Hysteresis | Q30: Arm 6 | R30: Linearity | S30: Hysteresis
B31: (mV) | C31: (%) | D31: (%) | E31: (mV) | F31: (%) | G31: (%) | H31: (mV) | I31: (%) | J31: (%) | K31: (mV) | L31: (%) | M31: (%) | N31: (mV) | O31: (%) | P31: (%) | Q31: (mV) | R31: (%) | S31: (%)
A32: 0 | B32: -290.5 | C32: =(B33-B32)*100/B$46 -> 104.0472942 | D32: =(B32-B44)*100/(B$38-B$32) -> 0 | E32: 244.5 | F32: =(E33-E32)*100/E$46 -> 101.8415064 | G32: =(E32-E44)*100/(E$38-E$32) -> 0.2487850035 | H32: -274.8 | I32: =(H33-H32)*100/H$46 -> 104.1402495 | J32: =(H32-H44)*100/(H$38-H$32) -> 0 | K32: -290.5 | L32: =(K33-K32)*100/K$46 -> 104.0472942 | M32: =(K32-K44)*100/(K$38-K$32) -> 0 | N32: 244.5 | O32: =(N33-N32)*100/N$46 -> 101.8415064 | P32: =(N32-N44)*100/(N$38-N$32) -> 0.2487850035 | Q32: -274.8 | R32: =(Q33-Q32)*100/Q$46 -> 104.1402495 | S32: =(Q32-Q44)*100/(Q$38-Q$32) -> 0
A33: 1 | B33: 24.4 | C33: 102.7256391 | D33: =(B33-B43)*100/(B$38-B$32) -> 0.1100352113 | E33: 538.6 | F33: 100.8372889 | G33: =(E33-E43)*100/(E$38-E$32) -> 0.2024994214 | H33: 28.5 | I33: 101.4277273 | J33: =(H33-H43)*100/(H$38-H$32) -> 0.2692021307 | K33: 24.4 | L33: 102.7256391 | M33: =(K33-K43)*100/(K$38-K$32) -> 0.1100352113 | N33: 538.6 | O33: 100.8372889 | P33: =(N33-N43)*100/(N$38-N$32) -> 0.2024994214 | Q33: 28.5 | R33: 101.4277273 | S33: =(Q33-Q43)*100/(Q$38-Q$32) -> 0.2692021307
A34: 2 | B34: 335.3 | C34: 98.99196359 | D34: =(B34-B42)*100/(B$38-B$32) -> 0.2090669014 | E34: 829.8 | F34: 99.9023278 | G34: =(E34-E42)*100/(E$38-E$32) -> 0.3760703541 | H34: 323.9 | I34: 100.0542984 | J34: =(H34-H42)*100/(H$38-H$32) -> 0.3952116387 | K34: 335.3 | L34: 98.99196359 | M34: =(K34-K42)*100/(K$38-K$32) -> 0.2090669014 | N34: 829.8 | O34: 99.9023278 | P34: =(N34-N42)*100/(N$38-N$32) -> 0.3760703541 | Q34: 323.9 | R34: 100.0542984 | S34: =(Q34-Q42)*100/(Q$38-Q$32) -> 0.3952116387
A35: 3 | B35: 634.9 | C35: 98.52938432 | D35: =(B35-B41)*100/(B$38-B$32) -> 0.1595510563 | E35: 1118.3 | F35: 99.65993047 | G35: =(E35-E41)*100/(E$38-E$32) -> 0.2892848878 | H35: 615.3 | I35: 98.81821231 | J35: =(H35-H41)*100/(H$38-H$32) -> 0.378028524 | K35: 634.9 | L35: 98.52938432 | M35: =(K35-K41)*100/(K$38-K$32) -> 0.1595510563 | N35: 1118.3 | O35: 99.65993047 | P35: =(N35-N41)*100/(N$38-N$32) -> 0.2892848878 | Q35: 615.3 | R35: 98.81821231 | S35: =(Q35-Q41)*100/(Q$38-Q$32) -> 0.378028524
A36: 4 | B36: 933.1 | C36: 98.16592918 | D36: =(B36-B40)*100/(B$38-B$32) -> 0.2420774648 | E36: 1406.1 | F36: 99.00199486 | G36: =(E36-E40)*100/(E$38-E$32) -> 0.2950705855 | H36: 903.1 | I36: 97.89114777 | J36: =(H36-H40)*100/(H$38-H$32) -> 0.2291081963 | K36: 933.1 | L36: 98.16592918 | M36: =(K36-K40)*100/(K$38-K$32) -> 0.2420774648 | N36: 1406.1 | O36: 99.00199486 | P36: =(N36-N40)*100/(N$38-N$32) -> 0.2950705855 | Q36: 903.1 | R36: 97.89114777 | S36: =(Q36-Q40)*100/(Q$38-Q$32) -> 0.2291081963
A37: 5 | B37: 1230.2 | C37: 98.09984643 | D37: =(B37-B39)*100/(B$38-B$32) -> 0.1045334507 | E37: 1692 | F37: 97.27058537 | G37: =(E37-E39)*100/(E$38-E$32) -> 0.1677852349 | H37: 1188.2 | I37: 97.13576185 | J37: =(H37-H39)*100/(H$38-H$32) -> 0.1088263933 | K37: 1230.2 | L37: 98.09984643 | M37: =(K37-K39)*100/(K$38-K$32) -> 0.1045334507 | N37: 1692 | O37: 97.27058537 | P37: =(N37-N39)*100/(N$38-N$32) -> 0.1677852349 | Q37: 1188.2 | R37: 97.13576185 | S37: =(Q37-Q39)*100/(Q$38-Q$32) -> 0.1088263933
A38: 6 | B38: 1527.1 | C38: -98.72763258 | E38: 1972.9 | F38: -98.27480287 | H38: 1471.1 | I38: -97.7881406 | K38: 1527.1 | L38: -98.72763258 | N38: 1972.9 | O38: -98.27480287 | Q38: 1471.1 | R38: -97.7881406
A39: 5 | B39: 1228.3 | C39: -98.99196359 | E39: 1689.1 | F39: -99.76381504 | H39: 1186.3 | I39: -98.61219797 | K39: 1228.3 | L39: -98.99196359 | N39: 1689.1 | O39: -99.76381504 | Q39: 1186.3 | R39: -98.61219797
A40: 4 | B40: 928.7 | C40: -98.03376368 | E40: 1401 | F40: -99.62530228 | H40: 899.1 | I40: -99.71094112 | K40: 928.7 | L40: -98.03376368 | N40: 1401 | O40: -99.62530228 | Q40: 899.1 | R40: -99.71094112
A41: 3 | B41: 632 | C41: -99.28933598 | E41: 1113.3 | F41: -100.4217506 | H41: 608.7 | I41: -100.1573055 | K41: 632 | L41: -99.28933598 | N41: 1113.3 | O41: -100.4217506 | Q41: 608.7 | R41: -100.1573055
A42: 2 | B42: 331.5 | C42: -102.1308943 | E42: 823.3 | F42: -99.79844323 | H42: 317 | I42: -100.6723414 | K42: 331.5 | L42: -102.1308943 | N42: 823.3 | O42: -99.79844323 | Q42: 317 | R42: -100.6723414
A43: 1 | B43: 22.4 | C43: -103.3864666 | E43: 535.1 | F43: -102.1185319 | H43: 23.8 | I43: -102.5264704 | K43: 22.4 | L43: -103.3864666 | N43: 535.1 | O43: -102.1185319 | Q43: 23.8 | R43: -102.5264704
A44: 0 | B44: -290.5 | E44: 240.2 | H44: -274.8 | K44: -290.5 | N44: 240.2 | Q44: -274.8
A45: Zero | B45: =INTERCEPT(B32:B44,$A32:$A44) -> -280.6561462 | C45: mV | E45: =INTERCEPT(E32:E44,$A32:$A44) -> 246.7727575 | F45: mV | H45: =INTERCEPT(H32:H44,$A32:$A44) -> -266.8697674 | I45: mV | K45: =INTERCEPT(K32:K44,$A32:$A44) -> -280.6561462 | L45: mV | N45: =INTERCEPT(N32:N44,$A32:$A44) -> 246.7727575 | O45: mV | Q45: =INTERCEPT(Q32:Q44,$A32:$A44) -> -266.8697674 | R45: mV
A46: Slope | B46: =SLOPE(B32:B44,$A32:$A44) -> 302.6508306 | C46: mV/mm | E46: =SLOPE(E32:E44,$A32:$A44) -> 288.7820598 | F46: mV/mm | H46: =SLOPE(H32:H44,$A32:$A44) -> 291.2418605 | I46: mV/mm | K46: =SLOPE(K32:K44,$A32:$A44) -> 302.6508306 | L46: mV/mm | N46: =SLOPE(N32:N44,$A32:$A44) -> 288.7820598 | O46: mV/mm | Q46: =SLOPE(Q32:Q44,$A32:$A44) -> 291.2418605 | R46: mV/mm
A80: Do Not Enter Text Below This Line. | E80: Do Not Enter Text Below This Line. | I80: Do Not Enter Text Below This Line. | M80: Do Not Enter Text Below This Line. | Q80: Do Not Enter Text Below This Line.
A84: mm | B84: Arm 1 | C84: Arm 2 | D84: Arm 3 | E84: Arm 4 | F84: Arm 5 | G84: Arm 6 | I84: psi | J84: TPC | K84: PPC A | L84: PPC B
A85: Plot? | B85: TRUE | C85: TRUE | D85: TRUE | E85: TRUE | F85: TRUE | G85: TRUE | I85: plot? | J85: TRUE | K85: TRUE | L85: TRUE
A86: 0 | B86: =IF(B$85=TRUE,B32,#N/A) -> -290.5 | C86: =IF(C$85=TRUE,E32,#N/A) -> 244.5 | D86: =IF(D$85=TRUE,H32,#N/A) -> -274.8 | E86: =IF(E$85=TRUE,K32,#N/A) -> -290.5 | F86: =IF(F$85=TRUE,N32,#N/A) -> 244.5 | G86: =IF(G$85=TRUE,Q32,#N/A) -> -274.8 | I86: 0 | J86: =IF(J$85=TRUE,B11,#N/A) -> -1400 | K86: =IF(K$85=TRUE,E11,#N/A) -> -30.1 | L86: =IF(L$85=TRUE,H11,#N/A) -> -1883.1
A87: 1 | B87: 24.4 | C87: 538.6 | D87: 28.5 | E87: 24.4 | F87: 538.6 | G87: 28.5 | I87: 100 | J87: =IF(J$85=TRUE,B12,#N/A) -> -1126.8 | K87: =IF(K$85=TRUE,E12,#N/A) -> 129.9 | L87: =IF(L$85=TRUE,H12,#N/A) -> -1711
A88: 2 | B88: 335.3 | C88: 829.8 | D88: 323.9 | E88: 335.3 | F88: 829.8 | G88: 323.9 | I88: 200 | J88: -849.5 | K88: 291.7 | L88: -1542.2
A89: 3 | B89: 634.9 | C89: 1118.3 | D89: 615.3 | E89: 634.9 | F89: 1118.3 | G89: 615.3 | I89: 300 | J89: -569.6 | K89: 455.1 | L89: -1372.3
A90: 4 | B90: 933.1 | C90: 1406.1 | D90: 903.1 | E90: 933.1 | F90: 1406.1 | G90: 903.1 | I90: 400 | J90: -290.9 | K90: 617.5 | L90: -1204
A91: 5 | B91: 1230.2 | C91: 1692 | D91: 1188.2 | E91: 1230.2 | F91: 1692 | G91: 1188.2 | I91: 500 | J91: -12.4 | K91: 778.6 | L91: -1036.8
A92: 6 | B92: 1527.1 | C92: 1972.9 | D92: 1471.1 | E92: 1527.1 | F92: 1972.9 | G92: 1471.1 | I92: 600 | J92: 265.5 | K92: 938.6 | L92: -870.8
A93: 5 | B93: 1228.3 | C93: 1689.1 | D93: 1186.3 | E93: 1228.3 | F93: 1689.1 | G93: 1186.3 | I93: 500 | J93: -6.1 | K93: 779.7 | L93: -1035.8
A94: 4 | B94: 928.7 | C94: 1401 | D94: 899.1 | E94: 928.7 | F94: 1401 | G94: 899.1 | I94: 400 | J94: -282.2 | K94: 618.3 | L94: -1203.1
A95: 3 | B95: 632 | C95: 1113.3 | D95: 608.7 | E95: 632 | F95: 1113.3 | G95: 608.7 | I95: 300 | J95: -560.3 | K95: 456 | L95: -1371.5
A96: 2 | B96: 331.5 | C96: 823.3 | D96: 317 | E96: 331.5 | F96: 823.3 | G96: 317 | I96: 200 | J96: -838.9 | K96: 293.5 | L96: -1540.4
A97: 1 | B97: 22.4 | C97: 535.1 | D97: 23.8 | E97: 22.4 | F97: 535.1 | G97: 23.8 | I97: 100 | J97: -1117.6 | K97: 131.3 | L97: -1709.2
A98: 0 | B98: -290.5 | C98: 240.2 | D98: -274.8 | E98: -290.5 | F98: 240.2 | G98: -274.8 | I98: 0 | J98: -1394.3 | K98: -29.2 | L98: -1878
E108: FALSE
